fUST/lending_fUST_20250716
["ID","MTS","AMOUNT","RATE_DAILY","PERIOD"]
[372550040,1752679864600,-1185.85,0.00023013,2]
[372550041,1752679864609,-317.35,0.00023013,2]
[372550042,1752679864618,-1429.97,0.00023013,2]
[372550043,1752679864627,-987.04,0.00023013,2]
[372550044,1752679864637,-844.39,0.00023013,2]
[372550045,1752679864646,-594.46,0.00023013,2]
[372550046,1752679864655,-460.0,0.00023013,2]
[372550047,1752679864664,-460.0,0.00023013,2]
[372550048,1752679864674,-5117.18,0.00023013,2]
[372550049,1752679864683,-778.65,0.00023013,2]
[372550050,1752679864695,-460.0,0.00023013,2]
[372550051,1752679864705,-471.95,0.00023013,2]
[372550052,1752679864718,-10006.83,0.00023013,2]
[372550053,1752679864728,-506.45,0.00023013,2]
[372550054,1752679864738,-2438.56,0.00023013,2]
[372550055,1752679864747,-687.27,0.00023013,2]
[372550056,1752679864789,-639.69,0.00023013,2]
[372550057,1752679864799,-460.0,0.00023013,2]
[372550058,1752679864809,-460.0,0.00023013,2]
[372550059,1752679864819,-521.65,0.00023013,2]
[372550060,1752679864829,-4147.13,0.00023013,2]
[372550061,1752679864839,-460.0,0.00023013,2]
[372550062,1752679864848,-6962.62,0.00023013,2]
[372550063,1752679864859,-959.76,0.00023013,2]
[372550064,1752679864868,-3564.08,0.00023013,2]
[372550065,1752679864878,-460.0,0.00023013,2]
[372550066,1752679864887,-2589.89,0.00023013,2]
[372550067,1752679864897,-1879.23,0.00023013,2]
[372550068,1752679864906,-1196.19,0.00023013,2]
[372550069,1752679864916,-13889.83,0.00023013,2]
[372550070,1752679864926,-2089.21,0.00023013,2]
[372550071,1752679864935,-460.0,0.00023013,2]
[372550072,1752679864945,-864.03,0.00023013,2]
[372550073,1752679864955,-464.03,0.00023013,2]
[372550074,1752679864971,-460.0,0.00023013,2]
[372550075,1752679864982,-460.0,0.00023013,2]
[372550076,1752679864991,-460.0,0.00023013,2]
[372550077,1752679865001,-942.0,0.00023013,2]
[372550078,1752679865011,-543.11,0.00023013,2]
[372550079,1752679865020,-1156.65,0.00023013,2]
[372550080,1752679865030,-509.24344022,0.00023013,2]
[372550081,1752679865040,-564.35,0.00023013,2]
[372550082,1752679865050,-460.0,0.00023013,2]
[372550083,1752679865060,-5710.44,0.00023013,2]
[372550084,1752679865069,-9435.4,0.00023013,2]
[372550085,1752679865080,-460.0,0.00023013,2]
[372550086,1752679865089,-1063.71,0.00023013,2]
[372550087,1752679865099,-4062.86,0.00023013,2]
[372550088,1752679865108,-460.0,0.00023013,2]
[372550089,1752679865117,-1067.68,0.00023013,2]
[372550090,1752679865126,-801.73,0.00023013,2]
[372550091,1752679865135,-1081.66,0.00023013,2]
[372550092,1752679865146,-460.0,0.00023013,2]
[372550093,1752679865155,-801.73,0.00023013,2]
[372550094,1752679865165,-652.86,0.00023013,2]
[372550095,1752679865175,-662.38,0.00023013,2]
[372550097,1752679865185,-1058.85,0.00023013,2]
[372550098,1752679865195,-917.58,0.00023013,2]
[372550099,1752679865204,-5295.6,0.00023013,2]
[372550100,1752679865217,-4731.5,0.00023013,2]
[372550101,1752679865226,-320.63307763,0.00023013,2]
[372550102,1752679865235,-1895.02,0.00023013,2]
[372550103,1752679865244,-3263.9,0.00023013,2]
[372550104,1752679865253,-2186.29,0.00023013,2]
[372550105,1752679865263,-5028.57,0.00023013,2]
[372550106,1752679865272,-582.88,0.00023013,2]
[372550107,1752679865282,-460.0,0.00023013,2]
[372550108,1752679865292,-469.31,0.00023013,2]
[372550109,1752679865301,-1167.8,0.00023013,2]
[372550110,1752679865311,-1440.99,0.00023013,2]
[372550111,1752679865321,-467.63,0.00023013,2]
[372550112,1752679865331,-2000.0,0.00023034,2]
[372550113,1752679865340,-660.0,0.00023049,2]
[372550114,1752679865350,-422.77781542,0.00023068,2]
[372550115,1752679865359,-1000.96444325,0.00023068,2]
[372550116,1752679865369,-163.56368296,0.00023068,2]
[372550117,1752679865378,-1262.34660236,0.00023068,2]
[372550118,1752679865387,-1500.0,0.00023068,2]
[372550119,1752679865397,-250.05317699,0.00023068,2]
[372550120,1752679865406,-1500.0,0.00023068,2]
[372550121,1752679865416,-1500.0,0.00023068,2]
[372550122,1752679865425,-1163.88850631,0.00023068,2]
[372550123,1752679865435,-4330.86530472,0.00023141,2]
[372550124,1752679865444,-298.9,0.00023141,5]
[372550125,1752679865454,-422.77781542,0.00023178,2]
[372550126,1752679865468,-9021.18677679,0.0002321,8]
[372550127,1752679865477,-360.683163,0.00023253,2]
[372550128,1752679865487,-150.0,0.00023275,2]
[372550129,1752679865497,-150.0,0.00023275,2]
[372550130,1752679865507,-460.0,0.00023287,2]
[372550131,1752679865517,-460.0,0.00023287,2]
[372550132,1752679865527,-617.79,0.00023287,2]
[372550133,1752679865536,-460.0,0.00023287,2]
[372550134,1752679865545,-460.0,0.00023287,2]
[372550135,1752679865555,-561.35,0.00023287,2]
[372550136,1752679865565,-466.62,0.00023287,2]
[372550137,1752679865575,-779.28,0.00023287,2]
[372550138,1752679865584,-460.0,0.00023287,2]
[372550139,1752679865594,-460.0,0.00023287,2]
[372550140,1752679865604,-939.24,0.00023287,2]
[372550141,1752679865613,-1185.85,0.00023287,2]
[372550142,1752679865623,-1429.97,0.00023287,2]
[372550143,1752679865632,-987.04,0.00023287,2]
[372550144,1752679865642,-844.39,0.00023287,2]
[372550145,1752679865652,-594.46,0.00023287,2]
[372550146,1752679865661,-460.0,0.00023287,2]
[372550147,1752679865671,-460.0,0.00023287,2]
[372550148,1752679865680,-5117.18,0.00023287,2]
[372550149,1752679865694,-778.65,0.00023287,2]
[372550150,1752679865704,-460.0,0.00023287,2]
[372550151,1752679865717,-471.95,0.00023287,2]
[372550152,1752679865726,-10006.83,0.00023287,2]
[372550153,1752679865737,-506.45,0.00023287,2]
[372550154,1752679865746,-2438.56,0.00023287,2]
[372550155,1752679865756,-687.27,0.00023287,2]
[372550156,1752679865766,-639.69,0.00023287,2]
[372550157,1752679865776,-460.0,0.00023287,2]
[372550158,1752679865785,-460.0,0.00023287,2]
[372550159,1752679865795,-521.65,0.00023287,2]
[372550160,1752679865804,-4147.13,0.00023287,2]
[372550161,1752679865814,-460.0,0.00023287,2]
[372550162,1752679865824,-6962.62,0.00023287,2]
[372550163,1752679865834,-959.76,0.00023287,2]
[372550164,1752679865843,-3564.08,0.00023287,2]
[372550165,1752679865853,-460.0,0.00023287,2]
[372550166,1752679865863,-2589.89,0.00023287,2]
[372550167,1752679865873,-1879.23,0.00023287,2]
[372550168,1752679865883,-1196.19,0.00023287,2]
[372550169,1752679865893,-13889.83,0.00023287,2]
[372550170,1752679865903,-2089.21,0.00023287,2]
[372550171,1752679865913,-460.0,0.00023287,2]
[372550172,1752679865923,-864.03,0.00023287,2]
[372550173,1752679865934,-464.03,0.00023287,2]
[372550174,1752679865944,-460.0,0.00023287,2]
[372550175,1752679865954,-460.0,0.00023287,2]
[372550176,1752679865967,-942.0,0.00023287,2]
[372550177,1752679865976,-1156.65,0.00023287,2]
[372550178,1752679865986,-564.35,0.00023287,2]
[372550179,1752679865996,-460.0,0.00023287,2]
[372550180,1752679866007,-5710.44,0.00023287,2]
[372550181,1752679866017,-9435.4,0.00023287,2]
[372550182,1752679866027,-460.0,0.00023287,2]
[372550183,1752679866037,-1063.71,0.00023287,2]
[372550184,1752679866047,-4062.86,0.00023287,2]
[372550185,1752679866057,-460.0,0.00023287,2]
[372550186,1752679866067,-1067.68,0.00023287,2]
[372550187,1752679866077,-801.73,0.00023287,2]
[372550188,1752679866087,-1081.66,0.00023287,2]
[372550189,1752679866097,-460.0,0.00023287,2]
[372550190,1752679866107,-801.73,0.00023287,2]
[372550191,1752679866117,-652.86,0.00023287,2]
[372550192,1752679866127,-662.38,0.00023287,2]
[372550193,1752679866137,-1058.85,0.00023287,2]
[372550194,1752679866148,-917.58,0.00023287,2]
[372550195,1752679866157,-4731.5,0.00023287,2]
[372550196,1752679866168,-5295.6,0.00023287,2]
[372550197,1752679866178,-1895.02,0.00023287,2]
[372550198,1752679866187,-3263.9,0.00023287,2]
[372550199,1752679866197,-2186.29,0.00023287,2]
[372550200,1752679866210,-5028.57,0.00023287,2]
[372550201,1752679866220,-582.88,0.00023287,2]
[372550202,1752679866230,-460.0,0.00023287,2]
[372550203,1752679866240,-469.31,0.00023287,2]
[372550204,1752679866249,-1167.8,0.00023287,2]
[372550205,1752679866259,-1440.99,0.00023287,2]
[372550206,1752679866269,-467.63,0.00023287,2]
[372550207,1752679866279,-422.77781542,0.00023288,2]
[372550208,1752679866290,-346.78304288,0.00023288,2]
[372550209,1752679866300,-3523.25395318,0.00023308,2]
[372550210,1752679866309,-633.66232133,0.00023312,2]
[372550211,1752679866320,-3000.0,0.00023312,2]
[372550212,1752679866330,-518.74580362,0.00023312,2]
[372550213,1752679866340,-2055.41,0.00023333,2]
[372550214,1752679866350,-160.0,0.00023354,8]
[372550215,1752679866360,-168.0,0.00023355,2]
[372550216,1752679866370,-2763.46229755,0.00023369,2]
[372550217,1752679866379,-5888.0,0.00023382,2]
[372550218,1752679866390,-422.77781542,0.00023397,2]
[372550219,1752679866401,-168.0,0.00023403,2]
[372550220,1752679866411,-151.526342,0.00023417,7]
[372550221,1752679866421,-458.715857,0.00023417,7]
[372550222,1752679866431,-458.715857,0.00023417,7]
[372550223,1752679866441,-225.537329,0.00023417,7]
[372550224,1752679866450,-225.537329,0.00023417,7]
[372550225,1752679866462,-9021.18677679,0.00023417,9]
[372550226,1752679866473,-2155.0,0.00023453,2]
[372550227,1752679866482,-968.0,0.00023453,2]
[372550228,1752679866492,-407.0,0.00023453,2]
[372550229,1752679866502,-413.405,0.00023453,2]
[372550230,1752679866512,-232.87420986,0.00023461,2]
[372550231,1752679866521,-5888.0,0.00023478,2]
[372550232,1752679866532,-168.0,0.00023497,2]
[372550233,1752679866543,-1096.0,0.000235,5]
[372550234,1752679866552,-642.0,0.000235,2]
[372550235,1752679866562,-298.9,0.00023506,6]
[372550236,1752679866572,-168.0,0.00023507,2]
[372550237,1752679866582,-422.77781542,0.00023507,2]
[372550238,1752679866592,-5000.0,0.00023514,3]
[372550239,1752679866602,-168.0,0.00023523,2]
[372550240,1752679866611,-5888.0,0.00023525,2]
[372550241,1752679866621,-168.0,0.00023546,2]
[372550242,1752679866631,-460.0,0.00023561,2]
[372550243,1752679866641,-460.0,0.00023561,2]
[372550244,1752679866650,-617.79,0.00023561,2]
[372550245,1752679866660,-200.0,0.00023561,2]
[372550246,1752679866669,-200.0,0.00023561,2]
[372550247,1752679866680,-200.0,0.00023561,2]
[372550248,1752679866692,-200.0,0.00023561,2]
[372550249,1752679866701,-200.0,0.00023561,2]
[372550250,1752679866713,-200.0,0.00023561,2]
[372550251,1752679866723,-200.0,0.00023561,2]
[372550252,1752679866735,-200.0,0.00023561,2]
[372550253,1752679866744,-460.0,0.00023561,2]
[372550254,1752679866754,-200.0,0.00023561,2]
[372550255,1752679866766,-200.0,0.00023561,2]
[372550256,1752679866775,-200.0,0.00023561,2]
[372550257,1752679866785,-200.0,0.00023561,2]
[372550258,1752679866795,-200.0,0.00023561,2]
[372550259,1752679866805,-200.0,0.00023561,2]
[372550260,1752679866815,-200.0,0.00023561,2]
[372550261,1752679866825,-200.0,0.00023561,2]
[372550262,1752679866835,-200.0,0.00023561,2]
[372550263,1752679866845,-455.54238409,0.00023561,2]
[372550264,1752679866855,-561.35,0.00023561,2]
[372550265,1752679866865,-466.62,0.00023561,2]
[372550266,1752679866875,-779.28,0.00023561,2]
[372550267,1752679866885,-460.0,0.00023561,2]
[372550268,1752679866895,-460.0,0.00023561,2]
[372550269,1752679866905,-939.24,0.00023561,2]
[372550270,1752679866915,-1185.85,0.00023561,2]
[372550271,1752679866924,-1429.97,0.00023561,2]
[372550272,1752679866935,-987.04,0.00023561,2]
[372550273,1752679866945,-844.39,0.00023561,2]
[372550274,1752679866955,-594.46,0.00023561,2]
[372550275,1752679866969,-460.0,0.00023561,2]
[372550276,1752679866980,-460.0,0.00023561,2]
[372550277,1752679866989,-5117.18,0.00023561,2]
[372550278,1752679866999,-778.65,0.00023561,2]
[372550279,1752679867009,-460.0,0.00023561,2]
[372550280,1752679867019,-471.95,0.00023561,2]
[372550281,1752679867029,-10006.83,0.00023561,2]
[372550282,1752679867039,-506.45,0.00023561,2]
[372550283,1752679867048,-2438.56,0.00023561,2]
[372550284,1752679867058,-687.27,0.00023561,2]
[372550285,1752679867068,-639.69,0.00023561,2]
[372550286,1752679867077,-460.0,0.00023561,2]
[372550287,1752679867087,-156.16956013,0.00023561,2]
[372550288,1752679867097,-521.65,0.00023561,2]
[372550289,1752679867107,-4147.13,0.00023561,2]
[372550290,1752679867117,-460.0,0.00023561,2]
[372550291,1752679867127,-6962.62,0.00023561,2]
[372550292,1752679867137,-959.76,0.00023561,2]
[372550293,1752679867147,-3564.08,0.00023561,2]
[372550294,1752679867156,-460.0,0.00023561,2]
[372550295,1752679867166,-2589.89,0.00023561,2]
[372550296,1752679867176,-1879.23,0.00023561,2]
[372550297,1752679867186,-1196.19,0.00023561,2]
[372550298,1752679867195,-13889.83,0.00023561,2]
[372550299,1752679867205,-2089.21,0.00023561,2]
[372550300,1752679867219,-460.0,0.00023561,2]
[372550301,1752679867229,-864.03,0.00023561,2]
[372550302,1752679867240,-464.03,0.00023561,2]
[372550303,1752679867250,-460.0,0.00023561,2]
[372550304,1752679867260,-503.0594196,0.00023561,2]
[372550305,1752679867270,-942.0,0.00023561,2]
[372550306,1752679867279,-1156.65,0.00023561,2]
[372550307,1752679867289,-564.35,0.00023561,2]
[372550308,1752679867300,-175.44488167,0.00023561,2]
[372550309,1752679867309,-5710.44,0.00023561,2]
[372550310,1752679867319,-9435.4,0.00023561,2]
[372550311,1752679867330,-460.0,0.00023561,2]
[372550312,1752679867340,-1063.71,0.00023561,2]
[372550313,1752679867350,-4062.86,0.00023561,2]
[372550314,1752679867360,-460.0,0.00023561,2]
[372550315,1752679867370,-1067.68,0.00023561,2]
[372550316,1752679867380,-801.73,0.00023561,2]
[372550317,1752679867389,-1081.66,0.00023561,2]
[372550318,1752679867399,-801.73,0.00023561,2]
[372550319,1752679867409,-460.0,0.00023561,2]
[372550320,1752679867420,-652.86,0.00023561,2]
[372550321,1752679867431,-662.38,0.00023561,2]
[372550322,1752679867442,-1058.85,0.00023561,2]
[372550323,1752679867453,-917.58,0.00023561,2]
[372550324,1752679867465,-4731.5,0.00023561,2]
[372550325,1752679867474,-5295.6,0.00023561,2]
[372550326,1752679867484,-1895.02,0.00023561,2]
[372550327,1752679867494,-3263.9,0.00023561,2]
[372550328,1752679867505,-2186.29,0.00023561,2]
[372550329,1752679867516,-5028.57,0.00023561,2]
[372550330,1752679867528,-582.88,0.00023561,2]
[372550331,1752679867539,-460.0,0.00023561,2]
[372550332,1752679867550,-469.31,0.00023561,2]
[372550333,1752679867560,-1167.8,0.00023561,2]
[372550334,1752679867570,-1440.99,0.00023561,2]
[372550335,1752679867581,-467.63,0.00023561,2]
[372550336,1752679867591,-4330.86530472,0.00023582,2]
[372550337,1752679867601,-2500.0,0.00023582,2]
[372550338,1752679867611,-760.0,0.00023597,2]
[372550339,1752679867621,-2077.12552098,0.00023616,2]
[372550340,1752679867631,-2000.0,0.00023616,2]
[372550341,1752679867642,-1000.0,0.00023616,2]
[372550342,1752679867652,-152.0,0.00023623,3]
[372550343,1752679867662,-152.0,0.00023623,3]
[372550344,1752679867672,-152.0,0.00023623,3]
[372550345,1752679867682,-152.0,0.00023623,3]
[372550346,1752679867696,-152.0,0.00023623,3]
[372550347,1752679867706,-152.0,0.00023623,3]
[372550348,1752679867718,-152.0,0.00023623,3]
[372550349,1752679867729,-152.0,0.00023623,3]
[372550350,1752679867739,-152.0,0.00023623,3]
[372550351,1752679867749,-152.0,0.00023623,3]
[372550352,1752679867759,-152.0,0.00023623,3]
[372550353,1752679867770,-152.0,0.00023623,3]
[372550354,1752679867780,-152.0,0.00023623,3]
[372550355,1752679867790,-152.0,0.00023623,3]
[372550356,1752679867800,-152.0,0.00023623,3]
[372550357,1752679867810,-152.0,0.00023623,3]
[372550358,1752679867820,-152.0,0.00023623,3]
[372550359,1752679867831,-152.0,0.00023623,3]
[372550360,1752679867841,-152.0,0.00023623,3]
[372550361,1752679867851,-324.0,0.00023623,3]
[372550362,1752679867862,-152.0,0.00023623,3]
[372550363,1752679867872,-324.0,0.00023623,3]
[372550364,1752679867883,-152.0,0.00023623,3]
[372550365,1752679867893,-324.0,0.00023623,3]
[372550366,1752679867903,-324.0,0.00023623,3]
[372550367,1752679867913,-152.0,0.00023623,3]
[372550368,1752679867925,-324.0,0.00023623,3]
[372550369,1752679867935,-152.0,0.00023623,3]
[372550370,1752679867944,-152.0,0.00023623,3]
[372550371,1752679867954,-324.0,0.00023623,3]
[372550372,1752679867969,-324.0,0.00023623,3]
[372550373,1752679867979,-152.0,0.00023623,3]
[372550374,1752679867989,-324.0,0.00023623,3]
[372550375,1752679867999,-152.0,0.00023623,3]
[372550376,1752679868009,-324.0,0.00023623,3]
[372550377,1752679868019,-152.0,0.00023623,3]
[372550378,1752679868030,-324.0,0.00023623,3]
[372550379,1752679868040,-152.0,0.00023623,3]
[372550380,1752679868050,-324.0,0.00023623,3]
[372550381,1752679868061,-152.0,0.00023623,3]
[372550382,1752679868071,-324.0,0.00023623,3]
[372550383,1752679868185,-152.0,0.00023623,3]
[372550384,1752679868212,-324.0,0.00023623,3]
[372550385,1752679868223,-152.0,0.00023623,3]
[372550386,1752679868234,-324.0,0.00023623,3]
[372550387,1752679868244,-152.0,0.00023623,3]
[372550388,1752679868254,-324.0,0.00023623,3]
[372550389,1752679868263,-152.0,0.00023623,3]
[372550390,1752679868274,-324.0,0.00023623,3]
[372550391,1752679868283,-152.0,0.00023623,3]
[372550392,1752679868293,-324.0,0.00023623,3]
[372550393,1752679868303,-152.0,0.00023623,3]
[372550394,1752679868312,-324.0,0.00023623,3]
[372550395,1752679868322,-152.0,0.00023623,3]
[372550396,1752679868332,-324.0,0.00023623,3]
[372550397,1752679868342,-152.0,0.00023623,3]
[372550398,1752679868351,-324.0,0.00023623,3]
[372550399,1752679868361,-152.0,0.00023623,3]
[372550400,1752679868370,-324.0,0.00023623,3]
[372550401,1752679868380,-324.0,0.00023623,3]
[372550402,1752679868389,-184.99541613,0.00023623,3]
[372550403,1752679868399,-152.0,0.00023623,3]
[372550404,1752679868409,-152.0,0.00023623,3]
[372550405,1752679868419,-152.0,0.00023623,3]
[372550406,1752679868428,-152.0,0.00023623,3]
[372550407,1752679868438,-159.40812346,0.00023623,3]
[372550408,1752679868447,-9021.18677679,0.00023624,9]
[372550409,1752679868456,-1908.832564,0.00023627,8]
[372550410,1752679868470,-231.28369723,0.00023634,2]
[372550411,1752679868480,-250.0,0.00023641,2]
[372550412,1752679868489,-422.77781542,0.00023644,2]
[372550413,1752679868499,-360.683163,0.00023645,7]
[372550414,1752679868509,-2763.46229755,0.00023678,2]
[372550415,1752679868519,-168.0,0.00023693,2]
[372550416,1752679868528,-215.5496034,0.000237,3]
[372550417,1752679868538,-214.40824756,0.000237,3]
[372550418,1752679868548,-360.683163,0.0002373,10]
[372550419,1752679868560,-168.0,0.00023739,2]
[372550420,1752679868570,-422.77781542,0.00023753,2]
[372550421,1752679868579,-991.3853258,0.00023753,3]
[372550422,1752679868588,-9839.23235418,0.000238,2]
[372550423,1752679868598,-168.0,0.00023802,2]
[372550424,1752679868607,-160.0,0.00023803,9]
[372550425,1752679868616,-168.0,0.00023819,2]
[372550426,1752679868627,-300.0,0.00023823,2]
[372550427,1752679868636,-300.0,0.00023823,2]
[372550428,1752679868646,-5888.0,0.00023823,2]
[372550429,1752679868656,-9021.18677679,0.00023831,10]
[372550430,1752679868665,-467.21469177,0.00023835,2]
[372550431,1752679868674,-460.0,0.00023835,2]
[372550432,1752679868685,-617.79,0.00023835,2]
[372550433,1752679868697,-460.0,0.00023835,2]
[372550434,1752679868707,-200.0,0.00023835,2]
[372550435,1752679868719,-561.35,0.00023835,2]
[372550436,1752679868728,-466.62,0.00023835,2]
[372550437,1752679868738,-779.28,0.00023835,2]
[372550438,1752679868748,-460.0,0.00023835,2]
[372550439,1752679868759,-460.0,0.00023835,2]
[372550440,1752679868770,-939.24,0.00023835,2]
[372550441,1752679868781,-1185.85,0.00023835,2]
[372550442,1752679868791,-1429.97,0.00023835,2]
[372550443,1752679868801,-987.04,0.00023835,2]
[372550444,1752679868811,-844.39,0.00023835,2]
[372550445,1752679868821,-594.46,0.00023835,2]
[372550446,1752679868831,-460.0,0.00023835,2]
[372550447,1752679868841,-412.001735,0.00023835,2]
[372550448,1752679868850,-5117.18,0.00023835,2]
[372550449,1752679868860,-778.65,0.00023835,2]
[372550450,1752679868870,-471.95,0.00023835,2]
[372550451,1752679868881,-10006.83,0.00023835,2]
[372550452,1752679868890,-506.45,0.00023835,2]
[372550453,1752679868900,-2438.56,0.00023835,2]
[372550454,1752679868910,-687.27,0.00023835,2]
[372550455,1752679868919,-151.0,0.00023835,7]
[372550456,1752679868929,-639.69,0.00023835,2]
[372550457,1752679868939,-151.958385,0.00023835,7]
[372550458,1752679868949,-349.08466395,0.00023835,2]
[372550459,1752679868960,-521.65,0.00023835,2]
[372550460,1752679868970,-4147.13,0.00023835,2]
[372550461,1752679868980,-460.0,0.00023835,2]
[372550462,1752679868990,-6962.62,0.00023835,2]
[372550463,1752679868999,-959.76,0.00023835,2]
[372550464,1752679869009,-158.17342747,0.00023835,2]
[372550465,1752679869019,-2589.89,0.00023835,2]
[372550466,1752679869029,-3564.08,0.00023835,2]
[372550467,1752679869039,-1879.23,0.00023835,2]
[372550468,1752679869049,-1196.19,0.00023835,2]
[372550469,1752679869058,-13889.83,0.00023835,2]
[372550470,1752679869068,-2089.21,0.00023835,2]
[372550471,1752679869077,-460.0,0.00023835,2]
[372550472,1752679869087,-864.03,0.00023835,2]
[372550473,1752679869097,-464.03,0.00023835,2]
[372550474,1752679869107,-460.0,0.00023835,2]
[372550475,1752679869117,-942.0,0.00023835,2]
[372550476,1752679869126,-1156.65,0.00023835,2]
[372550477,1752679869135,-564.35,0.00023835,2]
[372550478,1752679869145,-151.0,0.00023835,7]
[372550479,1752679869154,-5710.44,0.00023835,2]
[372550480,1752679869164,-9435.4,0.00023835,2]
[372550481,1752679869175,-460.0,0.00023835,2]
[372550482,1752679869184,-1063.71,0.00023835,2]
[372550483,1752679869193,-4062.86,0.00023835,2]
[372550484,1752679869203,-1067.68,0.00023835,2]
[372550485,1752679869214,-801.73,0.00023835,2]
[372550486,1752679869223,-1081.66,0.00023835,2]
[372550487,1752679869234,-576.662623,0.00023835,7]
[372550488,1752679869243,-801.73,0.00023835,2]
[372550489,1752679869253,-335.47953973,0.00023835,2]
[372550490,1752679869262,-576.662623,0.00023835,7]
[372550491,1752679869271,-652.86,0.00023835,2]
[372550492,1752679869281,-662.38,0.00023835,2]
[372550493,1752679869291,-1058.85,0.00023835,2]
[372550494,1752679869301,-917.58,0.00023835,2]
[372550495,1752679869311,-4731.5,0.00023835,2]
[372550496,1752679869321,-5295.6,0.00023835,2]
[372550497,1752679869330,-3263.9,0.00023835,2]
[372550498,1752679869340,-1895.02,0.00023835,2]
[372550499,1752679869349,-2186.29,0.00023835,2]
[372550500,1752679869359,-5028.57,0.00023835,2]
[372550501,1752679869368,-582.88,0.00023835,2]
[372550502,1752679869378,-460.0,0.00023835,2]
[372550503,1752679869387,-469.31,0.00023835,2]
[372550504,1752679869397,-1167.8,0.00023835,2]
[372550505,1752679869406,-1440.99,0.00023835,2]
[372550506,1752679869416,-467.63,0.00023835,2]
[372550507,1752679869426,-2763.46229755,0.00023842,2]
[372550508,1752679869436,-835.27095244,0.0002386,2]
[372550509,1752679869445,-422.77781542,0.00023863,2]
[372550510,1752679869455,-298.9,0.00023871,6]
[372550511,1752679869467,-2233.4601793,0.000239,2]
[372550512,1752679869477,-360.683163,0.00023929,14]
[372550513,1752679869487,-422.77781542,0.00023973,2]
[372550514,1752679869496,-5888.0,0.00023989,2]
[372550515,1752679869505,-781.02828274,0.00024,5]
[372550516,1752679869515,-160.0,0.00024,7]
[372550517,1752679869524,-48988.37,0.00024,7]
[372550518,1752679869534,-12500.0,0.00024,7]
[372550519,1752679869543,-215.5496034,0.00024,7]
[372550520,1752679869553,-156.811072,0.00024,7]
[372550521,1752679869563,-156.811072,0.00024,7]
[372550522,1752679869573,-547.38591,0.00024,7]
[372550523,1752679869583,-547.38591,0.00024,7]
[372550524,1752679869592,-209.544616,0.00024,7]
[372550525,1752679869602,-160.0,0.00024,7]
[372550526,1752679869611,-151.0,0.00024,7]
[372550527,1752679869621,-157.46,0.00024,14]
[372550528,1752679869631,-4279.04,0.00024,7]
[372550529,1752679869640,-49992.79,0.00024,2]
[372550530,1752679869650,-522.590694,0.00024,7]
[372550531,1752679869660,-522.590694,0.00024,7]
[372550532,1752679869670,-838.99048831,0.00024,7]
[372550533,1752679869681,-838.99048831,0.00024,10]
[372550534,1752679869695,-4330.86530472,0.00024023,2]
[372550535,1752679869705,-9021.18677679,0.00024038,10]
[372550536,1752679869718,-360.683163,0.00024042,2]
[372550537,1752679869728,-1000.0,0.00024054,2]
[372550538,1752679869738,-215.5496034,0.000241,10]
[372550539,1752679869748,-727.733832,0.00024109,7]
[372550540,1752679869758,-727.733832,0.00024109,7]